Cogmind - Beta 16.1 @@@ ROGUE MODE // 2026.04.04 @ 11:39:16 Player: the Result: Destroyed by L7-ISK(R) with Subdweller Shrapnel Launcher Performance ------------- Evolutions (0) 0 Regions Visited (2) 400 Robots Destroyed (35) 175 Value Destroyed (588) 588 Prototype IDs (1) 20 Alien Tech Used (0) 0 Bonus (0) 0 TOTAL SCORE: 1183 Bonus ------- None Cogmind --------- Core Integrity 0/250 Matter 300/300 Energy 250/250 System Corruption 0% Temperature Cool (24) Movement Core (600) Ox11 Location -10/Subcaves Parts ------- > --- POWER (1) -------- Ion Engine > --- PROPULSION (2) --- (None) > --- UTILITY (2) ------ Large Storage Unit Light Armor Plating > --- WEAPON (2) ------- Advanced Beam Cannon Advanced Beam Cannon > --- INVENTORY (15) --- Light Nuclear Core Light Treads Wheel High-capacity Storage Unit Improved Terrain Scanner Seismic Detector Advanced Beam Cannon Advanced Beam Cannon Heavy Assault Rifle Heavy Assault Rifle Heavy Assault Rifle Heavy Assault Rifle Mace Peak State ------------ > --- POWER ------------ Ion Engine > --- PROPULSION ------- Light Treads Light Treads > --- UTILITY ---------- Large Storage Unit Seismic Detector > --- WEAPON ----------- Advanced Beam Cannon Advanced Beam Cannon > --- INVENTORY -------- Light Nuclear Core Light Treads Light Treads Wheel Wheel High-capacity Storage Unit Improved Terrain Scanner Light Armor Plating Advanced Beam Cannon Advanced Beam Cannon Light Assault Rifle Light Assault Rifle Mace [Rating: 13] Favorites ----------- Power Ion Engine Engine Ion Engine Propulsion Light Treads Treads Light Treads Utility Seismic Detector Device Seismic Detector Storage Large Storage Unit Protection Light Armor Plating Weapon Advanced Beam Cannon Energy Gun Small Laser Energy Cannon Advanced Beam Cannon Ballistic Gun Light Assault Rifle Build | -11 -10 -10 ------- Run | Yrd Mat Sub Slots Evolved . | . . . Power . | . . . Propulsion . | . . . Utility . | . . . Weapon . | . . . Parts Attached 18 | 7 9 2 Power 2 | 1 1 . Engine 2 | 1 1 . Core . | . . . Reactor . | . . . Propulsion 3 | 2 . 1 Treads 3 | 2 . 1 Leg . | . . . Wheel . | . . . Hover . | . . . Flight . | . . . Utility 6 | 2 3 1 Device 3 | 1 2 . Storage 2 | 1 1 . Processor . | . . . Hackware . | . . . Protection 1 | . . 1 Artifact . | . . . Weapon 7 | 2 5 . Energy Gun 1 | 1 . . Energy Cannon 2 | . 2 . Ballistic Gun 4 | 1 3 . Ballistic Cannon . | . . . Launcher . | . . . Special Weapon . | . . . Impact Weapon . | . . . Slashing Weapon . | . . . Piercing Weapon . | . . . Special Melee Weapon . | . . . Unidentified Prototypes 1 | . 1 . Parts Lost 5 | . 2 3 Power 1 | . 1 . Propulsion 3 | . . 3 Utility 1 | . 1 . Weapon . | . . . Highest Loss Streak 2 | . 1 2 To Critical Strikes . | . . . Average Backups 10 | 2 10 14 Power . | . . 1 Propulsion 2 | . 2 2 Utility 3 | 1 3 3 Weapon 3 | . 3 7 Tool/Special . | . . . Unused Backups 19 | . 6 13 Power 1 | . . 1 Propulsion 3 | . 1 2 Utility 4 | . 1 3 Weapon 11 | . 4 7 Tool/Special . | . . . Average Slot Usage (%) 95 | . 95 99 Engine 12 | . 12 14 Treads 27 | . 27 27 Device 11 | . 11 12 Storage 14 | . 14 14 Energy Gun 3 | . 4 . Energy Cannon 13 | . 10 28 Ballistic Gun 10 | . 13 . Peak Build Rating 13 | 7 13 13 Average Rating 9 | 5 9 12 On Entrance 6 | . 7 13 Avg Prop Armor Cover (%) . | . . . Naked Turns . | . . . Heaviest Build 36 | 11 34 36 Greatest Support 40 | 40 40 40 Greatest Overweight (x) 1 | . 1 . Average Overweight (x) . | . . . Largest Inventory Capacity 15 | 8 15 15 Average Capacity 12 | 5 13 15 Most Carried 15 | 5 15 15 Average Carried 10 | 2 10 14 Final Capacity 15 | 8 15 15 Final Carried 15 | 5 15 13 Class Distribution -------------------- 100% | Mutant Dominant Class ---------------- Mutant | -10/Materials Mutant | -10/Subcaves Resources | -11 -10 -10 ----------- Run | Yrd Mat Sub Matter Collected 550 | 294 236 20 Remotely . | . . . Salvage Created 1050 | 222 626 202 Parts 80 | 18 52 10 Haulers Intercepted 1 | . 1 . Recyclers Shooed 2 | 2 . . Parts Field Recycled . | . . . Retrieved Matter . | . . . Parts Self-Destructed 12 | . . 12 Prevented . | . . . Parts Restored . | . . . Kills | -11 -10 -10 ------- Run | Yrd Mat Sub Combat Hostiles Destroyed 20 | . 16 4 Guns 16 | . 16 . Cannons 4 | . . 4 Classes Destroyed 9 | 3 5 1 Worker 3 | 2 1 . Tunneler 6 | 6 . . Hauler 1 | . 1 . Recycler 2 | 1 1 . Operator 1 | . 1 . Watcher 2 | . 2 . Swarmer 10 | . 9 1 Grunt 7 | . 7 . Subdweller 3 | . . 3 Best Kill Streak 6 | 4 6 2 Combat Bots Only 6 | . 6 2 Max Kills in Single Turn 1 | 1 1 1 Gunslinging . | . . . Exploded . | . . . Melee . | . . . Uniques/NPCs Destroyed . | . . . Combat | -11 -10 -10 -------- Run | Yrd Mat Sub Hostile Shots Fired 101 | . 76 25 Missed 28 | . 19 9 Hits 73 | . 57 16 Projectile 73 | . 57 16 AOE 2 | . . 2 Critical Strikes 2 | . . 2 Damage Taken 1013 | . 541 472 Core 250 | . 121 129 Absorbed by Shields . | . . . Regen/Repaired (Parts) 142 | . 142 . Core Remaining (%) 100 | 100 . . Volleys Fired 108 | 27 62 19 Largest 2 | 2 2 2 Hottest 136 | 60 136 136 Shots Fired 214 | 52 124 38 Gun 168 | 52 116 . Cannon 46 | . 8 38 Launcher . | . . . Special . | . . . Kinetic 128 | 27 101 . Thermal 86 | 25 23 38 Explosive . | . . . Electromagnetic . | . . . Robot Hit Streak 8 | 7 7 8 Robot Miss Streak 6 | 6 3 3 Penetration Max . | . . . Secondary Targets 2 | . 2 . Max Gunslinging Chain 1 | . 1 . Shots Hit Robots 130 | 26 82 22 Core Hits 58 | 12 39 7 Critical Kills 1 | . . 1 Critical Parts Destroyed . | . . . Critical Strikes 1 | . . 1 Meltdown 1 | . . 1 Melee Attacks . | . . . Impact . | . . . Slashing . | . . . Piercing . | . . . Sneak Attacks . | . . . Combat Hostiles . | . . . Follow-up Attacks . | . . . Damage Inflicted 1507 | 250 801 456 Guns 915 | 249 666 . Cannons 559 | . 103 456 Explosions . | . . . Melee . | . . . Ramming 33 | 1 32 . Kinetic 662 | 115 547 . Thermal 812 | 134 222 456 Explosive . | . . . Electromagnetic . | . . . Impact . | . . . Slashing . | . . . Piercing . | . . . Highest Corruption . | . . . Average Corruption . | . . . Corruption Purged . | . . . Corruption Blocked . | . . . Overload Shots . | . . . Overflow Damage . | . . . Projectiles . | . . . Explosions . | . . . Melee . | . . . Knockbacks . | . . . Impact . | . . . Kinetic . | . . . Secondary . | . . . Self-Inflicted Damage . | . . . Shots . | . . . Rammed 5 | 1 4 . Targets Rammed 6 | 1 5 . Kicked . | . . . Crushed 1 | . 1 . Highest Temperature 564 | 40 76 564 Average Temperature 48 | 17 32 89 Received Heat Transfer 839 | . 150 689 Effects 2 | . . 2 Shutdowns 1 | . . 1 Short Circuit 1 | . . 1 Siege Activations . | . . . Martial Activations . | . . . Shielding Activations . | . . . Robots Disrupted . | . . . Combat Hostiles . | . . . Robots Corrupted . | . . . Combat Hostiles . | . . . Parts Fried . | . . . Impact Corruptions . | . . . Robots Melted 1 | . . 1 Combat Hostiles 1 | . . 1 Parts Melted 1 | . . 1 Heat Transferred 1574 | 300 460 814 Parts Sabotaged . | . . . Parts Stolen . | . . . Parts Stripped . | . . . Power Chain Reactions . | . . . Alert | -11 -10 -10 ------- Run | Yrd Mat Sub Maximum Alert Level 1 | . 1 . Low Security (%) 93 | 100 92 . Level 1 6 | . 7 . Level 2 . | . . . Level 3 . | . . . Level 4 . | . . . Level 5 . | . . . High Security . | . . . Max Security . | . . . Peak Influence 237 | 10 237 . Initial . | . . . Average 76 | 1 89 . Influence Increases 531 | 45 466 20 Destroy 0b10 Robot/C 340 | . 320 20 Destroy 0b10 Robot/NC 75 | 45 30 . Destroy Leader 76 | . 76 . Successful Hack 10 | . 10 . Disable Machine 15 | . 15 . Lose Combat Pursuer 15 | . 15 . Influence Decreases 531 | 45 410 76 Entered New Map 28 | . . 28 Time Decay 473 | 45 390 38 Lost Part 30 | . 20 10 Squads Dispatched 4 | . 4 . Investigation 1 | . 1 . Extermination . | . . . Reinforcement 3 | . 3 . Assault . | . . . Garrison . | . . . Intercept . | . . . Searches Triggered . | . . . Construction Impeded . | . . . Haulers Reinforced . | . . . Active Scanning Responses . | . . . Cargo Convoy Interrupts . | . . . Stealth | -11 -10 -10 --------- Run | Yrd Mat Sub Distress Signals 1 | . 1 . Communications Jammed . | . . . Distress Signals . | . . . Times Spotted 31 | . 26 5 Peak Tracking Total 7 | . 7 3 Tactical Retreats 1 | . 1 . Traps | -11 -10 -10 ------- Run | Yrd Mat Sub Traps Triggered 2 | . 2 . Indirectly . | . . . Trap Hack Attempts . | . . . Triggered . | . . . Disarmed . | . . . Reprogrammed . | . . . Reused . | . . . Traps Extracted . | . . . Installed . | . . . Triggered . | . . . Machines | -11 -10 -10 ---------- Run | Yrd Mat Sub Machines Disabled 1 | . 1 . Max in Single Turn 1 | . 1 . Machines Repaired . | . . . Machines Dismantled . | . . . Machines Sabotaged . | . . . Overloaded Fab Kills . | . . . Hacking | -11 -10 -10 --------- Run | Yrd Mat Sub Machines Accessed 7 | . 7 . Terminals 5 | . 5 . Fabricators . | . . . Repair Stations 1 | . 1 . Recycling Units 1 | . 1 . Scanalyzers . | . . . Garrison Access . | . . . Total Hacks 23 | . 23 . Successful 11 | . 11 . Failed 12 | . 12 . Catastrophic . | . . . Database Lockouts . | . . . Manual 4 | . 4 . Terminals 16 | . 16 . Fabricators . | . . . Repair Stations 5 | . 5 . Recycling Units 2 | . 2 . Scanalyzers . | . . . Garrison Access . | . . . Terminal Hacks 4 | . 4 . Robot Analysis 1 | . 1 . Terminal Index 1 | . 1 . Locate Traps 1 | . 1 . Zone Layout 1 | . 1 . Fabricator Hacks . | . . . Repair Station Hacks 4 | . 4 . Scan Component 2 | . 2 . Repair 2 | . 2 . Recycling Unit Hacks 1 | . 1 . Retrieve Components 1 | . 1 . Scanalyzer . | . . . Garrison Access Hacks . | . . . Unauthorized Hacks 2 | . 2 . Terminals 2 | . 2 . Botnet 2 | . 2 . Fabricators . | . . . Repair Stations . | . . . Recycling Units . | . . . Scanalyzers . | . . . Garrison Access . | . . . Data Cores Recovered . | . . . Used . | . . . Hacking Detections 7 | . 7 . Full Trace Events 1 | . 1 . Feedback Events . | . . . Feedback Blocked . | . . . Robot Schematics Acquired . | . . . Robots Built . | . . . Authchips . | . . . Time . | . . . Total Robot Build Rating . | . . . Part Schematics Acquired . | . . . Parts Built . | . . . Authchips . | . . . Time . | . . . Total Part Build Rating . | . . . Part Studies Acquired . | . . . Parts Repaired 2 | . 2 . Time 64 | . 64 . Parts Recycled . | . . . Recycled Matter . | . . . Retrieved Matter . | . . . Retrieved Components 1 | . 1 . Parts Scanalyzed . | . . . Part Schematics Acquired . | . . . Parts Damaged . | . . . Bothacking | -11 -10 -10 ------------ Run | Yrd Mat Sub Used RIF Installer . | . . . Robots Hacked . | . . . Non-combat . | . . . Combat . | . . . Robot Hacks Applied . | . . . Relay Couplers Released . | . . . Fabnet Peak Effective % . | . . . Robots Rewired . | . . . Allies Hacked . | . . . Hacks Repelled . | . . . Allies | -11 -10 -10 -------- Run | Yrd Mat Sub Total Allies . | . . . Largest Group . | . . . Highest-Rated Group . | . . . Highest-Rated Ally . | . . . Total Orders . | . . . Ally Attacks . | . . . Total Damage . | . . . Kills . | . . . Allies Corrupted . | . . . Allies Melted . | . . . Intel | -11 -10 -10 ------- Run | Yrd Mat Sub Active Infowar (turns) 1549 | 94 1164 291 Seismic 1549 | 94 1164 291 Robot Analysis Total 1 | . 1 . Derelict Logs Recovered 1 | . . 1 Drone Launches . | . . . Drone Recoveries . | . . . Exploration | -11 -10 -10 ------------- Run | Yrd Mat Sub Turns Passed 2033 | 249 1433 351 Spaces Moved 976 | 102 712 162 Core 4 | 4 . . Treads 972 | 98 712 162 Legs . | . . . Wheels . | . . . Hover . | . . . Flight . | . . . Fastest Speed 50 | 50 160 160 Average Speed 159 | 155 160 160 Slowest Speed 240 | 160 240 160 Overloaded Moves . | . . . Propulsion Burnouts . | . . . Robots Hopped . | . . . Potential Cave-ins . | . . . Cave-ins Triggered . | . . . Exploration Rate (%) 34 | 6 81 16 Regions Visited 2 Branch Regions 1 Pre-discovered Areas 1 | . . 1 Known Exits Taken . | . . . Unknown Exits Taken 2 | 1 1 . Scrap Searched . | . . . Spaces Dug . | . . . Terrain Destroyed . | . . . Melee . | . . . Projectile . | . . . AOE . | . . . Terrain Rammed . | . . . Walls Destroyed . | . . . Machines Disabled . | . . . Actions | -11 -10 -10 --------- Run | Yrd Mat Sub Total 1259 | 143 900 216 Wait 108 | . 76 32 Move 974 | 101 711 162 Hop . | . . . Pick Up 26 | 7 19 . Fast Attach 11 | 5 6 . Attach 5 | 2 1 2 Detach . | . . . Swap 8 | . 8 . Drop 13 | . 12 1 Fire 108 | 27 62 19 Melee . | . . . Ram . | . . . Kick . | . . . Crush 6 | 1 5 . Escape Stasis . | . . . Rewire . | . . . Trap . | . . . Miscellaneous . | . . . Route ------- -11/Scrapyard -10/Materials (discovered 3 exits: [*Mat] / [*Min] / [*Sub]) -10/Subcaves (discovered 2 exits: [*Mat] / [*Scr]) History --------- Turn | Location | Event 5 | -11/Scrapyard | Discovered new exit (range 16) 250 | -11/Scrapyard | Entered Materials 309 | -10/Materials | Build established: Mutant 565 | -10/Materials | Repaired Lgt. Nuclear Core 906 | -10/Materials | Discovered new exit (range 15) 1038 | -10/Materials | Discovered new exit (range 8) 1093 | -10/Materials | Discovered new exit (range 15) 1414 | -10/Materials | Repaired Lgt. Treads 1683 | -10/Materials | Entered Subcaves 1684 | -10/Subcaves | Approached by a straggling Scientist 1687 | -10/Subcaves | Learned location of Storage (-8) 1857 | -10/Subcaves | Discovered new exit (range 10) 1894 | -10/Subcaves | Scientist uncovered a shortcut to Scraptown 1959 | -10/Subcaves | Ambushed by Subdwellers from Twisted Machinery 1971 | -10/Subcaves | Core integrity fell below 50% 2033 | -10/Subcaves | Core integrity fell below 20% 2034 | -10/Subcaves | Destroyed by L7-ISK(R) with Subdweller Shrapnel Launcher Last Messages --------------- 01895_ 8A-KCZ(c) exits level. 01937_ S-10 Pest destroyed. 01942_ Lgt. Assault Rifle fries itself beyond repair. 01943_ Flight Unit fries itself beyond repair. 01959_ JH-PHY(R) emerges from the Twisted Machinery. 01962_ Lgt. Treads destroyed. 01964_ G3-2XQ(R) destroyed. 01968_ Critical hit (Meltdown: +300). 01972_ Subatomizers dissect the Disposable Heat Sink. 01972_ Critical hit (Meltdown: +290). 01973_ Power failure, Ion Engine shutdown. 01974_ Seismic Detector broken. 01974_ Overheating: Short circuit. 01981_ Dropped Broken Seismic Detector. 02000_ C9-5HN(R): "SUBMAD!" 02012_ JH-PHY(R) destroyed. 02022_ Disposable Heat Sink melted. 02022_ C9-5HN(R) destroyed. 02025_ Acquired 20 matter. 02032_ Lgt. Treads destroyed. Map ----- +----------------------------------------------------+ | ?????????????????????????????????????????????????? | | ?????????????????????????????????????????????????? | | ?????????????????????????????????????????????????? | | ?????????????????????????????????????????????????? | | ?????????????????????????????????????????????????? | | ?????????????????????????????????????????????????? | | ?????????????????????????????????????????????????? | | ?????????????????????????????????????????????????? | | ?????????????????????????????????????????????????? | | ?????????????????????????????????????????????????? | | ?????????????????????????????????????????????????? | | ?????????????????????????????????????????????????? | | ?????????????????????????????????????????????????? | | ?????????????????????????????????????????????????? | | ???###?##########??????????????????#?????????????? | | #### ###"# ##% #????????????????? "?????????????? | | #" " """ #???????????????? "?????????????? | | #"""""" "" #??????????????? ??????????????? | | " #"### ##?????####???? #???????????????? | | "" ####?### #???### ##?? ##??????????????? | | ####"##?????## % ##### ### #??????????????? | | ??# ""#?????# ## ;# #???????????????? | | ?# #"##?????###### ##??????????????? | | # " ??????????## ##?????????????? | | " ? ##??????????#; !%= ; #?????????????? | | # #?????????????# @ &% ????????? | | "????????????????####; ; !R ????????? | | " ???????????????####; [; ;; # # ????????? | | " ????????# & ; ;###??????????????? | | ?????????# =&& ;;#????????????????? | | # ?????????# ## ## ## ???????????????? | | ?#??????????????### ##?# ##??##??????????????? | | ??????????????????## #??? #???????????????????? | | ???????????????????## ???? #???????????????????? | | ????????????????????# ????# #???????????????????? | | ????????????????????###?????##???????????????????? | | ?????????????????????????????????????????????????? | | ?????????????????????????????????????????????????? | | ?????????????????????????????????????????????????? | | ?????????????????????????????????????????????????? | | ?????????????????????????????????????????????????? | | ?????????????????????????????????????????????????? | | ?????????????????????????????????????????????????? | | ?????????????????????????????????????????????????? | | ?????????????????????????????????????????????????? | | ?????????????????????????????????????????????????? | | ?????????????????????????????????????????????????? | | ?????????????????????????????????????????????????? | | ?????????????????????????????????????????????????? | | ?????????????????????????????????????????????????? | +----------------------------------------------------+ Best States ------------- Heat Dissipation 25 Energy Generation 10 Energy Capacity 250 Matter Stores 300 Matter Capacity 300 Sight Range 16 Terrain Scan Density 10 Armor Coverage 150 Evasion (%) 40 Recoil Reduction 2 Item Schematics ----------------- None Robot Schematics ------------------ None Fabricated ------------ Nothing Repaired ---------- Lgt. Nuclear Core | 60% | -10/Materials Lgt. Treads | 12% | -10/Materials Studied --------- None Alien Tech Used ----------------- None Achievements -------------- None Challenges ------------ None Game ------ Seed GravityPhasingReplica Manual? 0 Play Time 00:11:54 Cumulative 689.8 hours Start 2026.04.04 @ 10:29:12 End 2026.04.04 @ 11:39:16 Sessions 2 Manual Loads 0 Difficulty Rogue Special Mode None Game No. 375 Rogue 375 Adventurer 0 Explorer 0 Win Type - Total 30 Types 15/1/6/2/1/1/1/2/1/0 Lore% 93 Gallery% 87 Achievement% 78 Wizard Run 0 Options --------- Layout 0 ASCII 0 Keyboard 0 Movement Numpad Keybinds 0 Fullscreen 2 Font 24/Smallcaps Map View 76x50 Zoom Use 0% Tactical HUD 1 Map Filters NONE Filters NONE Steam 1 RUN: ca409211-7559-43b1-b9ca-71a4cfb46613